[Event "FISU WUMSCC Men 2024"]
[Site "Entebbe"]
[Date "2024.06.28"]
[Round "7.9"]
[White "Wagner, Gerald"]
[Black "Hemeni, Simamnkele"]
[Result "1-0"]
[ECO "B56"]
[WhiteElo "1832"]
[BlackElo "1866"]
[Annotator "NA RC"]
[PlyCount "83"]
[EventDate "2024.06.24"]
[EventType "swiss"]
[EventCountry "UGA"]
[SourceTitle "playchess.com"]
[Source "ChessBase"]
[SourceQuality "1"]
[TimeControl "5400+30"]

1. e4 {[%emt 0:00:02]} c5 {[%emt 0:00:53]} 2. Nf3 {[%emt 0:00:06]} d6 {[%emt 0:00:02]} 3. d4 {[%emt 0:00:06]} cxd4 {[%emt 0:00:04]} 4. Nxd4 {[%emt 0:00:05]} Nf6 {[%emt 0:00:12]} 5. Nc3 {[%emt 0:00:04]} Nc6 {[%emt 0:00:04]} 6. h3 {[%emt 0:00:26]} e5 {[%emt 0:00:10]} 7. Nde2 {[%emt 0:00:05]} Be6 {[%emt 0:00:31]} 8. Bg5 {[%emt 0:00:08]} Be7 {[%emt 0:00:13]} 9. Qd2 {[%emt 0:01:48]} Qb6 {[%emt 0:08:47]} 10. b3 {[%emt 0:10:09]} h6 {[%emt 0:09:17]} 11. Be3 {[%emt 0:04:06]} Qa5 {[%emt 0:00:55]} 12. f4 {[%emt 0:07:48]} d5 {[%emt 0:09:05]} 13. f5 {[%emt 0:00:13]} Bxf5 {[%emt 0:01:25]} 14. Nxd5 {[%emt 0:05:22]} Nxd5 {[%emt 0:15:37]} 15. Qxa5 {[%emt 0:00:11]} Nxa5 {[%emt 0:00:58]} 16. exd5 {[%emt 0:00:23]} Bxc2 {[%emt 0:03:26]} 17. Bd2 {[%emt 0:05:44]} b6 {[%emt 0:00:55]} 18. Rc1 {[%emt 0:01:31]} Rc8 {[%emt 0:02:42]} 19. Nc3 {[%emt 0:01:21]} Bh4+ {[%emt 0:03:36]} 20. Ke2 {[%emt 0:00:26]} Bg6 {[%emt 0:00:36]} 21. Kf3 {[%emt 0:08:15]} O-O {[%emt 0:08:22]} 22. Ba6 {[%emt 0:01:10]} Rc7 {[%emt 0:02:38]} 23. Nb5 {[%emt 0:05:45]} Rd7 {[%emt 0:01:19]} 24. Bb4 {[%emt 0:12:36]} Re8 {[%emt 0:08:59]} 25. Nc7 {[%emt 0:04:32]} e4+ {[%emt 0:00:49]} 26. Ke2 {[%emt 0:00:03]} Re5 {[%emt 0:01:22]} 27. d6 {[%emt 0:01:11]} Bg5 {[%emt 0:06:40]} 28. Rc3 {[%emt 0:02:49]} f5 {[%emt 0:00:48]} 29. Bc8 {[%emt 0:06:02]} Be8 30. Nxe8 {[%emt 0:00:53]} Rf7 {[%emt 0:05:08]} 31. h4 {[%emt 0:05:32]} Bd8 {[%emt 0:00:01]} 32. d7 {[%emt 0:01:50]} f4 33. Nd6 {[%emt 0:11:41]} Rf6 {[%emt 0:00:34]} 34. Bxa5 {[%emt 0:03:31]} f3+ {[%emt 0:00:15]} 35. gxf3 {[%emt 0:00:07]} exf3+ {[%emt 0:00:01]} 36. Kf2 {[%emt 0:00:13]} Rxa5 {[%emt 0:12:06]} 37. Nb7 {[%emt 0:00:27]} Rxa2+ {[%emt 0:00:00]} 38. Kg3 {[%emt 0:00:16]} Bc7+ {[%emt 0:00:00]} 39. Rxc7 {[%emt 0:00:35]} Rg2+ {[%emt 0:00:00]} 40. Kh3 {[%emt 0:00:15]} Rfg6 {[%emt 0:00:00]} 41. d8=Q+ {[%emt 0:00:25]} Kh7 {[%emt 0:00:00]} 42. Qd6 {[%emt 0:00:53]} 1-0

[Event "FISU WUMSCC Men 2024"]
[Site "Entebbe"]
[Date "2024.06.28"]
[Round "7.10"]
[White "Selepe, Lwazi"]
[Black "Janik, Igor"]
[Result "0-1"]
[ECO "B11"]
[WhiteElo "1913"]
[BlackElo "2511"]
[Annotator "TA"]
[PlyCount "146"]
[EventDate "2024.06.24"]
[EventType "swiss"]
[EventCountry "UGA"]
[SourceTitle "playchess.com"]
[Source "ChessBase"]
[SourceQuality "1"]
[TimeControl "5400+30"]

{[%evp 29,146,0,0,-9,0,0,4,0,20,22,47,13,59,13,56,36,18,17,52,48,70,53,60,0,14,18,11,14,15,0,0,0,0,0,0,0,0,-7,0,0,0,-6,0,-6,7,18,26,29,30,8,25,31,34,40,31,37,36,23,36,27,39,31,23,0,0,0,7,8,8,6,23,8,21,0,7,0,0,0,15,0,37,0,8,8,8,0,0,0,0,0,0,0,0,0,5,0,0,0,16,16,97,0,4,-56,-50,-347,-345,-1005,-988,-1540,-1510,-29992,-29984,-29986,-29985,-5220,-1045,-919,-873]} 1. e4 {[%emt 0:06:39]} c6 {[%emt 0:00:17]} 2. Nc3 {[%emt 0:00:39]} d5 {[%emt 0:00:06]} 3. Nf3 {[%emt 0:00:04]} Bg4 {[%emt 0:00:04]} 4. Be2 {[%emt 0:00:05]} Bxf3 {[%emt 0:01:09]} 5. Bxf3 {[%emt 0:00:06]} d4 {[%emt 0:00:01]} 6. Nb1 {[%emt 0:00:33] B11: Caro-Kann: Two Knights Variation.} e5 {[%emt 0:00:15]} 7. d3 {[%emt 0:00:08]} Bd6 {[%emt 0:00:17]} 8. a4 $146 {[%emt 0:00:09]} ({Predecessor:} 8. Nd2 Ne7 9. Nc4 b5 10. Nxd6+ Qxd6 11. c3 c5 12. Qb3 b4 13. Bh5 O-O 14. O-O dxc3 15. bxc3 Qxd3 16. Bb2 Nbc6 17. cxb4 Qxb3 18. axb3 cxb4 19. Rfd1 {0-1 Rios Franco,J-Tirado,J East Region-ch U14 2011 (4.1)}) 8... Ne7 {[%emt 0:00:47]} 9. Nd2 {[%emt 0:00:10]} Bc7 {[%emt 0:00:15]} 10. O-O {[%emt 0:00:35]} Nd7 {[%emt 0:00:06]} 11. b3 {[%emt 0:00:28]} O-O {[%emt 0:01:06]} 12. Ba3 {[%emt 0:00:18]} Re8 {[%emt 0:00:12]} 13. g3 {[%emt 0:00:31]} Nf6 {[%emt 0:00:23]} 14. Bg2 {[%emt 0:00:10]} Ng6 {[%emt 0:00:34]} 15. h3 {[%emt 0:01:06]} a5 {[%emt 0:01:10]} 16. Qe2 {[%emt 0:00:49]} Ra6 {[%emt 0:02:12]} 17. Nf3 {[%emt 0:00:21]} Bd6 {[%emt 0:00:32]} 18. Bc1 {[%emt 0:00:45]} b5 {[%emt 0:00:42]} 19. Bd2 {[%emt 0:03:43]} Qc7 {[%emt 0:00:18]} 20. Qe1 {[%emt 0:04:19]} Rea8 {[%emt 0:00:39]} (20... b4 $11) 21. h4 {[%emt 0:08:05]} (21. c3 $14 {was preferrable.}) 21... Nf8 {[%emt 0:03:35]} 22. Nxe5 {[%emt 0:02:23]} Bxe5 {[%emt 0:00:04]} 23. f4 {[%emt 0:00:04]} N6d7 {[%emt 0:01:10]} 24. fxe5 {[%emt 0:00:17]} Nxe5 {[%emt 0:00:05]} 25. Qf2 {[%emt 0:02:40]} Qd6 {[%emt 0:02:13]} 26. Qe1 {[%emt 0:05:03]} (26. Bh3 $14) 26... Qc5 {[%emt 0:02:42]} 27. Bf4 {[%emt 0:07:56]} Nfg6 {[%emt 0:05:29]} 28. Qe2 {[%emt 0:05:37]} h6 {[%emt 0:03:28]} 29. h5 {[%emt 0:06:55]} Nf8 {[%emt 0:00:17]} 30. Bh3 {[%emt 0:00:57]} b4 {[%emt 0:02:28]} 31. Rf2 {[%emt 0:01:00]} Re8 {[%emt 0:00:26]} 32. Raf1 {[%emt 0:00:11]} Ra7 {[%emt 0:00:08]} 33. Kh2 {[%emt 0:00:18]} f6 {[%emt 0:01:54]} 34. Bf5 {[%emt 0:02:28]} Rae7 {[%emt 0:01:01]} 35. Kg2 {[%emt 0:00:45]} Kh8 {[%emt 0:01:08]} 36. Kh1 {[%emt 0:00:29]} Nf7 {[%emt 0:00:23]} 37. Bg6 {[%emt 0:02:52]} Kg8 {[%emt 0:02:23]} 38. Bxf7+ {[%emt 0:00:28]} Rxf7 {[%emt 0:00:08]} 39. Qg4 {[%emt 0:00:20]} f5 {[%emt 0:01:36]} 40. exf5 {[%emt 0:07:28]} Qxf5 {[%emt 0:04:43]} (40... Rxf5 41. Kg1 Rxh5 42. Bd6 Qxd6 43. Qxh5 Qxg3+ 44. Rg2 Qe3+ 45. Kh1 $11) 41. Qxf5 {[%emt 0:00:54]} Rxf5 {[%emt 0:00:01]} 42. g4 {[%emt 0:00:01]} Rd5 {[%emt 0:00:41]} 43. Kg2 {[%emt 0:01:01]} Nd7 {[%emt 0:00:14]} 44. Kg3 {[%emt 0:01:05]} Re6 {[%emt 0:00:11]} 45. Bc7 {[%emt 0:00:32]} Rc5 {[%emt 0:03:11]} 46. Rf4 {[%emt 0:02:39]} Rxc2 {[%emt 0:00:57]} 47. Rxd4 {[%emt 0:00:06]} Nf6 $1 {[%emt 0:00:18]} 48. Bxa5 {[%emt 0:02:24]} c5 {[%emt 0:00:10]} 49. Rc4 {[%emt 0:02:02]} Rd2 {[%emt 0:02:00]} 50. Rf3 {[%emt 0:04:55]} Ree2 {[%emt 0:02:31]} 51. Bc7 {[%emt 0:00:42]} Rd1 {[%emt 0:10:09]} 52. a5 {[%emt 0:03:54]} Rg1+ {[%emt 0:00:28]} 53. Kh3 {[%emt 0:00:13]} Rb1 {[%emt 0:00:48]} 54. a6 {[%emt 0:01:56]} Ra2 {[%emt 0:01:48]} 55. Bd8 {[%emt 0:03:04]} Nd7 {[%emt 0:03:12]} 56. d4 {[%emt 0:01:26]} Rxa6 {[%emt 0:00:26]} 57. Be7 {[%emt 0:01:34]} (57. dxc5 $2 {is the wrong capture.} Ne5 58. Rxb4 Nxf3 $19) 57... cxd4 {[%emt 0:04:33]} 58. Rxd4 {[%emt 0:00:40]} Ne5 {[%emt 0:00:10]} 59. Re3 {[%emt 0:02:12]} Nc6 {[%emt 0:00:56]} 60. Rd6 {[%emt 0:00:39]} Rc1 {[%emt 0:00:12]} 61. Bh4 {[%emt 0:01:37]} Raa1 {[%emt 0:03:13]} 62. Bf2 {[%emt 0:00:42]} Rc2 63. Kg3 {[%emt 0:01:29]} Rf1 {[%emt 0:04:40]} 64. Rf3 {[%emt 0:00:30]} Kh7 {[%emt 0:01:38] [#]} (64... Ra1 $1 $11 {keeps the balance.}) 65. Be3 {[%emt 0:01:51]} (65. Rf8 $1 $16 {Black must now prevent Re6.} Rb1 66. Re6 Rxb3+ 67. Kg2) 65... Rb1 {[%emt 0:03:05]} 66. g5 {[%emt 0:01:19]} (66. Bd4 $11) 66... hxg5 $1 $15 {[%emt 0:00:03]} 67. Bxg5 $2 {[%emt 0:00:23][%mdl 8192]} (67. Re6 $1 $15) 67... Ne5 $19 {[%emt 0:01:06]} 68. Rf8 $2 {[%emt 0:01:38]} (68. Re3 Nf7 69. Rb6 Nxg5 (69... Rg1+ $2 70. Kf4 $19) 70. Kf4) 68... Rg1+ $19 {[%emt 0:00:26]} 69. Kh3 {[%emt 0:00:57]} Rxg5 {[%emt 0:00:31]} 70. Kh4 {[%emt 0:00:12]} Rg4+ {[%emt 0:00:08]} 71. Kh3 {[%emt 0:00:05]} Rc3+ {[%emt 0:00:06]} 72. Kh2 {[%emt 0:00:04]} Rh4+ {[%emt 0:00:08]} 73. Kg2 {[%emt 0:00:02]} Rxh5 {[%emt 0:00:06]} 0-1

[Event "FISU WUMSCC Men 2024"]
[Site "Entebbe"]
[Date "2024.06.28"]
[Round "7.11"]
[White "Alshnaiber, Yazeed"]
[Black "Musasizi, Emmanuel"]
[Result "1/2-1/2"]
[ECO "B48"]
[WhiteElo "1831"]
[BlackElo "1966"]
[Annotator "NA RC"]
[PlyCount "167"]
[EventDate "2024.06.24"]
[EventType "swiss"]
[EventCountry "UGA"]
[SourceTitle "playchess.com"]
[Source "ChessBase"]
[SourceQuality "1"]
[TimeControl "5400+30"]

1. e4 {[%emt 0:05:01]} c5 {[%emt 0:00:58]} 2. Nf3 {[%emt 0:00:18]} e6 {[%emt 0:00:21]} 3. d4 {[%emt 0:00:04]} cxd4 {[%emt 0:00:25]} 4. Nxd4 {[%emt 0:00:06]} a6 {[%emt 0:00:11]} 5. Bd3 {[%emt 0:00:26]} Nf6 {[%emt 0:00:19]} 6. O-O {[%emt 0:00:53]} Qc7 {[%emt 0:00:06]} 7. Be3 {[%emt 0:08:15]} h5 {[%emt 0:00:32]} 8. h3 {[%emt 0:01:54]} Nc6 {[%emt 0:00:19]} 9. Nc3 {[%emt 0:03:08]} Bd6 {[%emt 0:07:01]} 10. Qd2 {[%emt 0:02:46] B48: Sicilian: Taimanov: 5 Nc3 Qc7 6 Be3 a6 without Be2.} Nxd4 {[%emt 0:04:19]} 11. Bxd4 {[%emt 0:02:05]} Bf4 {[%emt 0:01:41]} 12. Be3 {[%emt 0:01:04]} g5 {[%emt 0:03:28]} 13. Rae1 {[%emt 0:05:17]} e5 {[%emt 0:01:36]} 14. Nd5 {[%emt 0:01:38]} Qd8 {[%emt 0:03:56]} 15. Qe2 {[%emt 0:00:59]} Nxd5 {[%emt 0:01:00]} 16. exd5 {[%emt 0:00:18]} d6 {[%emt 0:00:09]} 17. c4 {[%emt 0:27:17]} b6 {[%emt 0:04:36]} 18. b4 {[%emt 0:00:46]} Bb7 {[%emt 0:02:48]} (18... Kf8 $16 {was necessary.}) 19. Be4 {[%emt 0:06:51]} Kf8 {[%emt 0:02:49]} 20. g3 {[%emt 0:01:53]} Bxe3 {[%emt 0:00:58]} 21. fxe3 {[%emt 0:00:08]} Kg7 {[%emt 0:00:30]} 22. Rf2 {[%emt 0:00:35]} Ra7 {[%emt 0:00:31]} 23. Ref1 {[%emt 0:00:34]} Bc8 $14 {[%emt 0:01:29]} 24. Kh2 {[%emt 0:01:14]} h4 {[%emt 0:00:42]} 25. g4 {[%emt 0:00:24]} Rh6 {[%emt 0:02:21]} 26. Qf3 {[%emt 0:06:34]} f6 {[%emt 0:02:28]} 27. Bd3 {[%emt 0:01:05]} Rf7 {[%emt 0:03:07]} 28. Qe4 {[%emt 0:00:22]} Qc7 {[%emt 0:02:04]} 29. Rc1 {[%emt 0:02:44]} Qa7 {[%emt 0:01:36]} 30. Bb1 {[%emt 0:02:19]} Rc7 {[%emt 0:00:59]} 31. Rfc2 {[%emt 0:00:34]} Bb7 {[%emt 0:01:52]} 32. Qf5 {[%emt 0:02:25]} Bc8 {[%emt 0:00:29]} 33. Qd3 {[%emt 0:00:34]} Bd7 {[%emt 0:02:11]} 34. Rc3 {[%emt 0:04:35]} Be8 {[%emt 0:01:10]} 35. c5 {[%emt 0:01:59]} bxc5 {[%emt 0:04:12]} 36. bxc5 {[%emt 0:00:44]} dxc5 {[%emt 0:00:19]} 37. d6 {[%emt 0:01:07]} Rc6 {[%emt 0:04:10]} 38. Qd5 {[%emt 0:00:13]} Qd7 {[%emt 0:00:56]} 39. Rxc5 {[%emt 0:00:44]} Rxd6 {[%emt 0:02:17]} 40. Qf3 {[%emt 0:01:30]} Rd2+ {[%emt 0:02:03]} 41. Kg1 {[%emt 0:00:06]} e4 {[%emt 0:03:01]} 42. Bxe4 {[%emt 0:00:59]} Qd6 43. Rc7+ {[%emt 0:02:01]} Kf8 {[%emt 0:01:52]} 44. Rc8 {[%emt 0:03:04]} Ke7 {[%emt 0:04:12]} 45. R8c7+ {[%emt 0:01:04]} Kf8 46. R7c2 {[%emt 0:02:55]} Qh2+ {[%emt 0:04:46]} 47. Kf1 {[%emt 0:00:02]} Bb5+ {[%emt 0:08:38]} 48. Ke1 {[%emt 0:00:10]} Rxc2 {[%emt 0:00:50]} 49. Rxc2 {[%emt 0:00:06]} Qe5 {[%emt 0:02:06]} 50. Rc8+ {[%emt 0:02:04]} Ke7 {[%emt 0:01:02]} 51. Qf5 {[%emt 0:01:18]} Bd7 {[%emt 0:04:17]} 52. Qxe5+ {[%emt 0:00:12]} fxe5 {[%emt 0:00:09]} 53. Rc5 {[%emt 0:00:12]} Kf6 {[%emt 0:02:28]} 54. Rc7 {[%emt 0:00:09]} Bb5 {[%emt 0:00:58]} 55. Bc6 {[%emt 0:00:09]} Bd3 {[%emt 0:00:37]} 56. Bg2 {[%emt 0:00:42]} Rh8 {[%emt 0:00:53]} 57. Bf1 {[%emt 0:00:07]} Rd8 {[%emt 0:02:03]} 58. a4 {[%emt 0:00:36]} Bxf1 {[%emt 0:03:06]} 59. Kxf1 {[%emt 0:00:04]} Rd1+ {[%emt 0:00:16]} 60. Kg2 {[%emt 0:01:12]} e4 {[%emt 0:01:21]} 61. Rc6+ {[%emt 0:00:37]} Kf7 {[%emt 0:00:14]} 62. Rxa6 {[%emt 0:00:13]} Rd2+ {[%emt 0:00:06]} 63. Kg1 {[%emt 0:00:06]} Re2 {[%emt 0:01:04]} 64. Ra7+ {[%emt 0:01:25]} Kf6 {[%emt 0:00:11]} 65. Ra6+ {[%emt 0:00:03]} Ke5 {[%emt 0:01:36]} 66. Ra5+ {[%emt 0:00:06]} Kf6 {[%emt 0:00:07]} 67. Ra6+ {[%emt 0:00:03]} Ke7 {[%emt 0:00:49]} 68. Rg6 {[%emt 0:00:54]} Rxe3 {[%emt 0:00:08]} 69. Rxg5 {[%emt 0:00:04]} Ke6 {[%emt 0:00:14]} 70. Rh5 {[%emt 0:01:52]} Rxh3 {[%emt 0:00:12]} 71. Kf2 {[%emt 0:00:06]} Rf3+ {[%emt 0:00:22]} 72. Ke2 {[%emt 0:00:12]} h3 {[%emt 0:00:15]} 73. a5 {[%emt 0:00:03]} Ra3 {[%emt 0:00:19]} 74. a6 {[%emt 0:00:54]} Kf6 {[%emt 0:01:02]} 75. a7 {[%emt 0:01:00]} Rxa7 {[%emt 0:00:34]} 76. Ke3 {[%emt 0:00:33]} Ra4 {[%emt 0:00:25]} 77. Kf4 {[%emt 0:00:04]} Kg6 {[%emt 0:01:40]} 78. Rxh3 {[%emt 0:00:07]} e3+ {[%emt 0:00:17]} 79. Kf3 {[%emt 0:00:01]} e2 {[%emt 0:01:00]} 80. Kxe2 {[%emt 0:00:28]} Kg5 {[%emt 0:00:19]} 81. Rg3 {[%emt 0:00:13]} Kf4 {[%emt 0:00:14]} 82. Rg1 {[%emt 0:00:47]} Ra5 {[%emt 0:00:13]} 83. Kd3 {[%emt 0:00:24]} Rg5 {[%emt 0:00:06]} 84. Kd4 {[%emt 0:00:05]} 1/2-1/2

[Event "FISU WUMSCC Men 2024"]
[Site "Entebbe"]
[Date "2024.06.28"]
[Round "7.12"]
[White "Alinda Collins"]
[Black "Alfaitori, Abdallah"]
[Result "0-1"]
[ECO "B22"]
[WhiteElo "1845"]
[BlackElo "1947"]
[Annotator "NA RC"]
[PlyCount "164"]
[EventDate "2024.06.24"]
[EventType "swiss"]
[EventCountry "UGA"]
[SourceTitle "playchess.com"]
[Source "ChessBase"]
[SourceQuality "1"]
[TimeControl "5400+30"]

1. e4 {[%emt 0:00:08]} e6 {[%emt 0:02:11]} 2. d4 {[%emt 0:00:09]} d5 {[%emt 0:00:03]} 3. Nd2 {[%emt 0:04:26]} c5 {[%emt 0:01:09]} 4. c3 {[%emt 0:00:32]} cxd4 {[%emt 0:00:22]} 5. cxd4 {[%emt 0:00:10]} dxe4 {[%emt 0:00:24]} 6. Nxe4 {[%emt 0:00:19]} Be7 {[%emt 0:02:34]} 7. Nf3 {[%emt 0:00:24]} Nf6 {[%emt 0:00:45]} 8. Bd3 {[%emt 0:01:03]} O-O {[%emt 0:00:44]} 9. O-O {[%emt 0:00:16]} Nc6 {[%emt 0:01:48]} 10. Be3 {[%emt 0:01:48] 10.Nc3 gains popularity. B22: Sicilian: 2 c3.} Nb4 {[%emt 0:03:14]} 11. Bb1 {[%emt 0:00:47]} b6 {[%emt 0:01:38]} 12. Nxf6+ {[%emt 0:00:32]} Bxf6 {[%emt 0:00:11]} 13. Be4 {[%emt 0:04:53]} Nd5 {[%emt 0:01:15]} 14. Nd2 $146 {[%emt 0:00:40]} ({Predecessor:} 14. Qc2 h6 15. Rfd1 Bb7 16. Qe2 Rc8 17. Bb1 Qe7 18. Qd3 g6 19. Bxh6 {½-½ Ordonez Olaya,D (1216)-Alderete Yalico,J (1108) Pan American-ch School U13 12th 2023 (7)}) 14... Ba6 {[%emt 0:05:35]} 15. Re1 {[%emt 0:00:30]} Qd7 {[%emt 0:02:48]} 16. Qf3 {[%emt 0:01:20]} Rac8 {[%emt 0:06:10]} 17. Nf1 {[%emt 0:00:49]} Nb4 {[%emt 0:03:47]} 18. Red1 {[%emt 0:12:16]} Nc2 {[%emt 0:05:36]} 19. Rab1 $1 {[%emt 0:01:41]} Nb4 {[%emt 0:06:33]} (19... Bxf1 $15 {should be considered.} 20. Kxf1 Rfd8 (20... Bxd4 $2 {too greedy.} 21. Bxc2 Rxc2 22. Bxd4 $18) (20... Nxd4 21. Bxh7+ Kxh7 22. Bxd4 $11)) 20. Ng3 {[%emt 0:02:14]} Be7 {[%emt 0:02:57]} (20... Nxa2 $2 {perishes.} 21. Nh5 Qe7 22. Ra1 $18) (20... Nd5 $11 {should be considered.}) 21. a3 {[%emt 0:02:28]} f5 {[%emt 0:04:35]} (21... Nd5 $15) 22. axb4 {[%emt 0:01:53]} fxe4 {[%emt 0:00:31]} 23. Qxe4 {[%emt 0:00:15]} Bb7 {[%emt 0:02:03]} (23... Bxb4 24. d5 Rc4 (24... Bc4 $2 25. b3 $18) 25. Qxe6+ (25. dxe6 Qxd1+ 26. Rxd1 Rxe4 $16) 25... Qxe6 26. dxe6 $16) 24. Qg4 {[%emt 0:00:34]} Rf6 $11 {[%emt 0:02:52]} ({Much weaker is} 24... Bxb4 $6 25. d5 Bc5 26. dxe6 $16 (26. Qxe6+ Qxe6 27. dxe6 Bxe3 $18)) 25. f3 {[%emt 0:00:12]} Rg6 {[%emt 0:05:47]} 26. Qh3 {[%emt 0:03:14]} Rf8 {[%emt 0:03:37]} 27. Rd3 {[%emt 0:01:02]} Qb5 {[%emt 0:01:26]} 28. Rbd1 {[%emt 0:00:43]} Bd5 {[%emt 0:05:57]} 29. Kh1 {[%emt 0:01:30]} Rxf3 {[%emt 0:06:38]} 30. gxf3 {[%emt 0:00:52]} Bxf3+ {[%emt 0:01:45]} 31. Kg1 {[%emt 0:00:14]} Bxd1 {[%emt 0:00:39]} 32. Rxd1 {[%emt 0:00:12]} Qe2 {[%emt 0:01:39]} 33. Qxe6+ {[%emt 0:02:15]} Rxe6 {[%emt 0:02:30]} 34. Nxe2 {[%emt 0:00:12]} Rxe3 {[%emt 0:00:30]} 35. Kf2 {[%emt 0:00:12]} Rb3 {[%emt 0:01:57]} 36. Rd2 {[%emt 0:00:19]} Bxb4 {[%emt 0:00:53]} 37. Rc2 {[%emt 0:00:36]} Bd6 {[%emt 0:00:46]} 38. Nc3 {[%emt 0:01:23]} b5 {[%emt 0:03:44]} 39. h4 {[%emt 0:00:45]} Be7 {[%emt 0:03:00]} 40. h5 {[%emt 0:00:47]} Bf6 {[%emt 0:00:23]} 41. Ne2 {[%emt 0:00:31]} Rd3 {[%emt 0:01:36]} 42. Rc8+ {[%emt 0:00:33]} Kf7 {[%emt 0:00:08]} 43. Rc7+ {[%emt 0:00:09]} Kg8 {[%emt 0:03:27]} 44. Rc8+ {[%emt 0:00:18]} Kf7 {[%emt 0:00:13]} 45. Rc7+ {[%emt 0:00:03]} Kf8 {[%emt 0:01:27]} 46. h6 {[%emt 0:00:58]} gxh6 {[%emt 0:01:00]} 47. Rxa7 {[%emt 0:00:53]} Rd2 {[%emt 0:02:45]} 48. Ke3 {[%emt 0:00:48]} Rxb2 {[%emt 0:01:11]} 49. Ra8+ {[%emt 0:00:33]} Kg7 {[%emt 0:01:10]} 50. Ra7+ {[%emt 0:00:26]} Kg6 {[%emt 0:00:41]} 51. Nf4+ {[%emt 0:00:28]} Kf5 {[%emt 0:00:30]} 52. Nd5 {[%emt 0:00:19]} Rb3+ 53. Ke2 {[%emt 0:00:16]} Bxd4 {[%emt 0:01:06]} 54. Rxh7 {[%emt 0:00:05]} Kg5 {[%emt 0:00:42]} 55. Rf7 {[%emt 0:00:25]} h5 {[%emt 0:00:34]} 56. Nf4 {[%emt 0:00:25]} Re3+ {[%emt 0:00:17]} 57. Kd2 {[%emt 0:00:13]} Re5 {[%emt 0:00:27]} 58. Kd3 {[%emt 0:00:26]} Bb6 {[%emt 0:00:47]} 59. Ne2 {[%emt 0:00:21]} Re3+ {[%emt 0:00:23]} 60. Kd2 {[%emt 0:00:09]} Re6 {[%emt 0:00:18]} 61. Rg7+ {[%emt 0:00:35]} Kh6 {[%emt 0:00:32]} 62. Rd7 {[%emt 0:00:27]} h4 {[%emt 0:00:28]} 63. Kd3 {[%emt 0:00:13]} Rf6 {[%emt 0:00:46]} 64. Ke4 {[%emt 0:00:27]} Re6+ {[%emt 0:00:23]} 65. Kd3 {[%emt 0:00:20]} Bc5 {[%emt 0:00:34]} 66. Rd5 {[%emt 0:00:12]} Rd6 {[%emt 0:00:27]} 67. Rxd6+ {[%emt 0:01:33]} Bxd6 {[%emt 0:00:11]} 68. Ke3 {[%emt 0:00:13]} b4 {[%emt 0:00:50]} 69. Nc1 {[%emt 0:00:33]} Kg5 {[%emt 0:00:37]} 70. Kf3 {[%emt 0:00:06]} Kf5 {[%emt 0:00:25]} 71. Kg2 {[%emt 0:00:25]} Bf4 {[%emt 0:00:22]} 72. Nb3 {[%emt 0:00:09]} Ke4 {[%emt 0:00:43]} 73. Na1 {[%emt 0:00:22]} Kd3 {[%emt 0:00:32]} 74. Nb3 {[%emt 0:00:09]} Kc3 {[%emt 0:00:22]} 75. Na5 {[%emt 0:00:40]} Bc7 {[%emt 0:00:19]} 76. Nb7 {[%emt 0:00:29]} Bb6 {[%emt 0:00:29]} 77. Nd6 {[%emt 0:00:45]} b3 {[%emt 0:00:12]} 78. Ne4+ {[%emt 0:00:20]} Kc2 {[%emt 0:01:01]} 79. Nd6 {[%emt 0:00:29]} Kd3 {[%emt 0:00:31]} 80. Nb5 {[%emt 0:00:26]} Bc5 {[%emt 0:00:20]} 81. Kh3 {[%emt 0:00:05]} b2 {[%emt 0:00:20]} 82. Kxh4 {[%emt 0:00:14]} b1=Q {[%emt 0:00:19]} 0-1